[Event "Titled Tuesday Blitz March 15 Early 2022"]
[White "Baskin, Robert"]
[Black "volunteers1998"]
[WhiteFideId "24662402"]
[WhiteElo "2488"]
[BlackElo "2263"]
[Result "0-1"]
[Round "03"]
[TimeControl "180+1"]
[Date "2022.03.15"]
[WhiteClock "0:00:02"]
[BlackClock "0:01:05"]

1. c4 {[%clk 0:02:59]}  f5 {[%clk 0:02:58]} 2. d4 {[%clk 0:02:57]}  Nf6 {[%clk 0:02:57]} 3. g3 {[%clk 0:02:57]}  g6 {[%clk 0:02:56]} 4. Bg2 {[%clk 0:02:57]}  Bg7 {[%clk 0:02:57]} 5. Nf3 {[%clk 0:02:56]}  O-O {[%clk 0:02:56]} 6. O-O {[%clk 0:02:56]}  d6 {[%clk 0:02:54]} 7. Nc3 {[%clk 0:02:56]}  Nc6 {[%clk 0:02:48]} 8. d5 {[%clk 0:02:56]}  Ne5 {[%clk 0:02:45]} 9. Nxe5 {[%clk 0:02:54]}  dxe5 {[%clk 0:02:46]} 10. Qb3 {[%clk 0:02:54]}  e6 {[%clk 0:02:40]} 11. Rd1 {[%clk 0:02:51]}  Qe7 {[%clk 0:02:35]} 12. dxe6 {[%clk 0:02:36]}  c6 {[%clk 0:02:32]} 13. Be3 {[%clk 0:01:57]}  Bxe6 {[%clk 0:02:29]} 14. Na4 {[%clk 0:01:58]}  Rfd8 {[%clk 0:02:20]} 15. Nc5 {[%clk 0:01:57]}  Rxd1+ {[%clk 0:02:16]} 16. Rxd1 {[%clk 0:01:57]}  Rb8 {[%clk 0:02:08]} 17. Nxe6 {[%clk 0:01:52]}  Qxe6 {[%clk 0:02:07]} 18. Bxa7 {[%clk 0:01:53]}  Rf8 {[%clk 0:01:59]} 19. Qxb7 {[%clk 0:01:52]}  Qxc4 {[%clk 0:01:53]} 20. Qxc6 {[%clk 0:01:26]}  Qxe2 {[%clk 0:01:50]} 21. Rc1 {[%clk 0:01:03]}  Qxb2 {[%clk 0:01:47]} 22. a4 {[%clk 0:01:01]}  e4 {[%clk 0:01:45]} 23. Bf1 {[%clk 0:00:58]}  Ng4 {[%clk 0:01:39]} 24. Qe6+ {[%clk 0:00:42]}  Kh8 {[%clk 0:01:36]} 25. Rc7 {[%clk 0:00:42]}  Ne5 {[%clk 0:01:25]} 26. Qe7 {[%clk 0:00:37]}  Nf3+ {[%clk 0:01:23]} 27. Kg2 {[%clk 0:00:35]}  h5 {[%clk 0:01:18]} 28. Be3 {[%clk 0:00:27]}  Ne1+ {[%clk 0:01:15]} 29. Kh1 {[%clk 0:00:23]}  Nd3 {[%clk 0:01:14]} 30. Bh6 {[%clk 0:00:18]}  Rg8 {[%clk 0:01:10]} 31. Bxd3 {[%clk 0:00:02]}  exd3 {[%clk 0:01:07]} 32. Kg2 {[%clk 0:00:02]}  d2 {[%clk 0:01:05]} 0-1


[Site "https://www.chess.com"]

[Event "Titled Tuesday Blitz March 15 Early 2022"]
[White "Beerdsen, Thomas"]
[Black "Sarana, Alexey"]
[WhiteFideId "1030108"]
[BlackFideId "24133795"]
[WhiteElo "2585"]
[BlackElo "2666"]
[Result "0-1"]
[Round "03"]
[TimeControl "180+1"]
[Date "2022.03.15"]
[WhiteClock "0:01:02"]
[BlackClock "0:02:10"]

1. e4 {[%clk 0:03:00]}  c5 {[%clk 0:02:59]} 2. Nf3 {[%clk 0:03:01]}  d6 {[%clk 0:02:59]} 3. d4 {[%clk 0:03:01]}  cxd4 {[%clk 0:03:00]} 4. Nxd4 {[%clk 0:03:01]}  Nf6 {[%clk 0:03:00]} 5. Nc3 {[%clk 0:03:02]}  a6 {[%clk 0:03:01]} 6. a3 {[%clk 0:03:02]}  e5 {[%clk 0:03:01]} 7. Nf5 {[%clk 0:03:03]}  d5 {[%clk 0:03:00]} 8. Bg5 {[%clk 0:03:03]}  d4 {[%clk 0:03:00]} 9. Bxf6 {[%clk 0:03:04]}  Qxf6 {[%clk 0:03:00]} 10. Nd5 {[%clk 0:03:04]}  Qc6 {[%clk 0:03:00]} 11. c4 {[%clk 0:03:03]}  Be6 {[%clk 0:02:59]} 12. f4 {[%clk 0:02:59]}  g6 {[%clk 0:02:57]} 13. Nxd4 {[%clk 0:03:00]}  exd4 {[%clk 0:02:57]} 14. Qxd4 {[%clk 0:03:00]}  f6 {[%clk 0:02:54]} 15. Be2 {[%clk 0:02:51]}  Nd7 {[%clk 0:02:53]} 16. b4 {[%clk 0:02:47]}  Bxd5 {[%clk 0:02:40]} 17. exd5 {[%clk 0:02:45]}  Qb6 {[%clk 0:02:40]} 18. c5 {[%clk 0:02:45]}  Nxc5 {[%clk 0:02:40]} 19. bxc5 {[%clk 0:02:46]}  Bxc5 {[%clk 0:02:40]} 20. Qe4+ {[%clk 0:02:46]}  Kf7 {[%clk 0:02:40]} 21. Rb1 {[%clk 0:02:35]}  Qa5+ {[%clk 0:02:37]} 22. Kf1 {[%clk 0:02:36]}  Rhe8 {[%clk 0:02:33]} 23. Rxb7+ {[%clk 0:02:32]}  Kg8 {[%clk 0:02:33]} 24. Qc4 {[%clk 0:02:05]}  Bd6 {[%clk 0:02:32]} 25. g3 {[%clk 0:01:51]}  Rac8 {[%clk 0:02:26]} 26. Qd3 {[%clk 0:01:51]}  Rc3 {[%clk 0:02:13]} 27. Qd1 {[%clk 0:01:11]}  Qc5 {[%clk 0:02:12]} 28. Rb1 {[%clk 0:01:02]}  Rc2 {[%clk 0:02:10]} 0-1


[Site "https://www.chess.com"]

[Event "Titled Tuesday Blitz March 15 Early 2022"]
[White "Bluebaum, Matthias"]
[Black "Postny, Evgeny"]
[WhiteFideId "24651516"]
[BlackFideId "2804344"]
[WhiteElo "2550"]
[BlackElo "2483"]
[Result "1-0"]
[Round "03"]
[TimeControl "180+1"]
[Date "2022.03.15"]
[WhiteClock "0:01:25"]
[BlackClock "0:00:01"]

1. b3 {[%clk 0:03:00]}  d5 {[%clk 0:02:59]} 2. Bb2 {[%clk 0:03:01]}  Nf6 {[%clk 0:02:59]} 3. Nf3 {[%clk 0:03:01]}  c5 {[%clk 0:02:59]} 4. e3 {[%clk 0:03:02]}  e6 {[%clk 0:02:57]} 5. c4 {[%clk 0:02:59]}  dxc4 {[%clk 0:02:54]} 6. Bxc4 {[%clk 0:02:59]}  a6 {[%clk 0:02:51]} 7. O-O {[%clk 0:02:57]}  Be7 {[%clk 0:02:47]} 8. d4 {[%clk 0:02:56]}  b5 {[%clk 0:02:39]} 9. Be2 {[%clk 0:02:56]}  Bb7 {[%clk 0:02:36]} 10. a4 {[%clk 0:02:57]}  b4 {[%clk 0:02:37]} 11. Nbd2 {[%clk 0:02:56]}  O-O {[%clk 0:02:33]} 12. Rc1 {[%clk 0:02:55]}  Nbd7 {[%clk 0:02:32]} 13. Nc4 {[%clk 0:02:55]}  a5 {[%clk 0:02:29]} 14. Qc2 {[%clk 0:02:48]}  Be4 {[%clk 0:02:23]} 15. Bd3 {[%clk 0:02:44]}  Bxf3 {[%clk 0:02:04]} 16. gxf3 {[%clk 0:02:45]}  cxd4 {[%clk 0:02:00]} 17. Bxd4 {[%clk 0:02:46]}  Qb8 {[%clk 0:01:48]} 18. Qb1 {[%clk 0:02:40]}  g6 {[%clk 0:01:42]} 19. Rfd1 {[%clk 0:02:38]}  Nd5 {[%clk 0:01:41]} 20. f4 {[%clk 0:02:33]}  Bf6 {[%clk 0:01:35]} 21. Be4 {[%clk 0:02:17]}  Bxd4 {[%clk 0:01:27]} 22. Rxd4 {[%clk 0:02:18]}  N7f6 {[%clk 0:01:21]} 23. Bf3 {[%clk 0:02:18]}  Ra7 {[%clk 0:01:14]} 24. Qd3 {[%clk 0:02:18]}  Rc7 {[%clk 0:01:04]} 25. Rd1 {[%clk 0:02:16]}  Qa7 {[%clk 0:00:56]} 26. Rd2 {[%clk 0:02:17]}  Rfc8 {[%clk 0:00:52]} 27. Kh1 {[%clk 0:02:16]}  Qc5 {[%clk 0:00:48]} 28. h3 {[%clk 0:02:00]}  Qa7 {[%clk 0:00:47]} 29. h4 {[%clk 0:01:48]}  Kg7 {[%clk 0:00:39]} 30. Rd1 {[%clk 0:01:48]}  Nb6 {[%clk 0:00:31]} 31. Nd6 {[%clk 0:01:45]}  Rc3 {[%clk 0:00:28]} 32. Nxc8 {[%clk 0:01:44]}  Nxc8 {[%clk 0:00:24]} 33. Qb5 {[%clk 0:01:39]}  Rxb3 {[%clk 0:00:19]} 34. h5 {[%clk 0:01:39]}  Ne7 {[%clk 0:00:15]} 35. Rd7 {[%clk 0:01:24]}  Nxd7 {[%clk 0:00:09]} 36. Rxd7 {[%clk 0:01:25]}  Rb1+ {[%clk 0:00:01]} 37. Kg2 {[%clk 0:01:25]}  Qb8 {[%clk 0:00:01]} 38. Qxb8 {[%clk 0:01:25]} 1-0


[Site "https://www.chess.com"]

[Event "Titled Tuesday Blitz March 15 Early 2022"]
[White "Bortnyk, Olexandr"]
[Black "Urazayev, Arystanbek"]
[WhiteFideId "14120828"]
[BlackFideId "13709810"]
[WhiteElo "2723"]
[BlackElo "2393"]
[Result "1-0"]
[Round "03"]
[TimeControl "180+1"]
[Date "2022.03.15"]
[WhiteClock "0:00:56"]
[BlackClock "0:00:34"]

1. e4 {[%clk 0:03:00]}  c5 {[%clk 0:03:00]} 2. c3 {[%clk 0:03:00]}  e6 {[%clk 0:03:00]} 3. d4 {[%clk 0:03:00]}  d5 {[%clk 0:03:00]} 4. exd5 {[%clk 0:03:00]}  exd5 {[%clk 0:03:01]} 5. Be3 {[%clk 0:02:59]}  c4 {[%clk 0:02:54]} 6. b3 {[%clk 0:02:59]}  cxb3 {[%clk 0:02:54]} 7. axb3 {[%clk 0:03:00]}  Nc6 {[%clk 0:02:55]} 8. Bd3 {[%clk 0:03:00]}  Nf6 {[%clk 0:02:55]} 9. h3 {[%clk 0:03:00]}  Bd6 {[%clk 0:02:56]} 10. Qf3 {[%clk 0:03:00]}  h6 {[%clk 0:02:55]} 11. Ne2 {[%clk 0:03:00]}  O-O {[%clk 0:02:55]} 12. Nd2 {[%clk 0:02:50]}  Re8 {[%clk 0:02:55]} 13. O-O {[%clk 0:02:41]}  Be6 {[%clk 0:02:35]} 14. Nf4 {[%clk 0:02:39]}  Qd7 {[%clk 0:02:22]} 15. Nxe6 {[%clk 0:02:33]}  Qxe6 {[%clk 0:02:23]} 16. Bf5 {[%clk 0:02:10]}  Qe7 {[%clk 0:02:23]} 17. Rfe1 {[%clk 0:02:10]}  Ne4 {[%clk 0:02:07]} 18. Nxe4 {[%clk 0:02:05]}  dxe4 {[%clk 0:02:07]} 19. Qg4 {[%clk 0:02:06]}  Qf6 {[%clk 0:02:03]} 20. Bxe4 {[%clk 0:02:04]}  h5 {[%clk 0:02:03]} 21. Qf3 {[%clk 0:01:56]}  Qxf3 {[%clk 0:01:58]} 22. Bxf3 {[%clk 0:01:57]}  g6 {[%clk 0:01:59]} 23. c4 {[%clk 0:01:46]}  Nb4 {[%clk 0:01:53]} 24. Re2 {[%clk 0:01:35]}  Nd3 {[%clk 0:01:13]} 25. Bxb7 {[%clk 0:01:32]}  Rab8 {[%clk 0:01:13]} 26. Rxa7 {[%clk 0:01:32]}  Re7 {[%clk 0:01:06]} 27. Ra6 {[%clk 0:01:25]}  Rexb7 {[%clk 0:00:53]} 28. Rxd6 {[%clk 0:01:25]}  Rxb3 {[%clk 0:00:54]} 29. c5 {[%clk 0:01:22]}  Rc3 {[%clk 0:00:51]} 30. c6 {[%clk 0:01:20]}  Kg7 {[%clk 0:00:46]} 31. d5 {[%clk 0:01:20]}  Rb4 {[%clk 0:00:45]} 32. Bg5 {[%clk 0:01:12]}  Kh7 {[%clk 0:00:40]} 33. Rd7 {[%clk 0:01:02]}  Kg7 {[%clk 0:00:34]} 34. Ree7 {[%clk 0:00:56]} 1-0


[Site "https://www.chess.com"]

[Event "Titled Tuesday Blitz March 15 Early 2022"]
[White "Brunner, Nicolas"]
[Black "Kowalczyk, Pawel"]
[WhiteFideId "620246"]
[BlackFideId "1130641"]
[WhiteElo "2372"]
[BlackElo "2344"]
[Result "1/2-1/2"]
[Round "03"]
[TimeControl "180+1"]
[Date "2022.03.15"]
[WhiteClock "0:00:07"]
[BlackClock "0:00:18"]

1. d4 {[%clk 0:02:59]}  Nf6 {[%clk 0:03:00]} 2. c4 {[%clk 0:02:59]}  c5 {[%clk 0:02:59]} 3. d5 {[%clk 0:02:59]}  b5 {[%clk 0:02:59]} 4. cxb5 {[%clk 0:02:56]}  a6 {[%clk 0:02:59]} 5. b6 {[%clk 0:02:56]}  Qxb6 {[%clk 0:02:59]} 6. Nc3 {[%clk 0:02:56]}  g6 {[%clk 0:02:57]} 7. e4 {[%clk 0:02:55]}  d6 {[%clk 0:02:58]} 8. Nf3 {[%clk 0:02:52]}  Bg7 {[%clk 0:02:58]} 9. Nd2 {[%clk 0:02:50]}  O-O {[%clk 0:02:58]} 10. Be2 {[%clk 0:02:50]}  e6 {[%clk 0:02:55]} 11. Nc4 {[%clk 0:02:45]}  Qc7 {[%clk 0:02:52]} 12. dxe6 {[%clk 0:02:45]}  Bxe6 {[%clk 0:02:53]} 13. Qxd6 {[%clk 0:02:40]}  Qxd6 {[%clk 0:02:54]} 14. Nxd6 {[%clk 0:02:40]}  Nc6 {[%clk 0:02:51]} 15. O-O {[%clk 0:02:24]}  Rfd8 {[%clk 0:02:49]} 16. Nb7 {[%clk 0:02:22]}  Rdb8 {[%clk 0:02:41]} 17. Nxc5 {[%clk 0:02:22]}  Nd4 {[%clk 0:02:41]} 18. Nxe6 {[%clk 0:02:19]}  Nxe6 {[%clk 0:02:41]} 19. Bc4 {[%clk 0:02:16]}  Rb4 {[%clk 0:02:36]} 20. Bxe6 {[%clk 0:02:11]}  fxe6 {[%clk 0:02:37]} 21. f3 {[%clk 0:02:11]}  Rc8 {[%clk 0:02:34]} 22. Rd1 {[%clk 0:02:07]}  Nh5 {[%clk 0:02:21]} 23. Rd6 {[%clk 0:01:37]}  Bd4+ {[%clk 0:02:16]} 24. Kh1 {[%clk 0:01:29]}  e5 {[%clk 0:01:43]} 25. Rxa6 {[%clk 0:01:24]}  Rd8 {[%clk 0:01:34]} 26. Nd5 {[%clk 0:01:21]}  Rc4 {[%clk 0:01:33]} 27. Bh6 {[%clk 0:01:13]}  Bxb2 {[%clk 0:01:31]} 28. Rd1 {[%clk 0:01:12]}  Bd4 {[%clk 0:01:20]} 29. g4 {[%clk 0:00:58]}  Ng7 {[%clk 0:01:12]} 30. Nf6+ {[%clk 0:00:56]}  Kh8 {[%clk 0:01:12]} 31. Bxg7+ {[%clk 0:00:47]}  Kxg7 {[%clk 0:01:11]} 32. g5 {[%clk 0:00:48]}  Rb8 {[%clk 0:01:01]} 33. Rd6 {[%clk 0:00:38]}  Rb2 {[%clk 0:00:50]} 34. Rd7+ {[%clk 0:00:38]}  Kf8 {[%clk 0:00:51]} 35. Nxh7+ {[%clk 0:00:38]}  Ke8 {[%clk 0:00:51]} 36. Nf6+ {[%clk 0:00:38]}  Kf8 {[%clk 0:00:51]} 37. a4 {[%clk 0:00:12]}  Rcc2 {[%clk 0:00:48]} 38. Ng4 {[%clk 0:00:12]}  Ra2 {[%clk 0:00:42]} 39. f4 {[%clk 0:00:09]}  Rg2 {[%clk 0:00:23]} 40. fxe5 {[%clk 0:00:06]}  Rxg4 {[%clk 0:00:21]} 41. R1xd4 {[%clk 0:00:03]}  Rxg5 {[%clk 0:00:17]} 42. Rd8+ {[%clk 0:00:02]}  Kg7 {[%clk 0:00:17]} 43. R8d7+ {[%clk 0:00:02]}  Kf8 {[%clk 0:00:17]} 44. Rd8+ {[%clk 0:00:02]}  Ke7 {[%clk 0:00:18]} 45. R4d7+ {[%clk 0:00:02]}  Ke6 {[%clk 0:00:18]} 46. Rd6+ {[%clk 0:00:03]}  Kxe5 {[%clk 0:00:17]} 47. Rd5+ {[%clk 0:00:03]}  Kf4 {[%clk 0:00:18]} 48. Rxg5 {[%clk 0:00:04]}  Kxg5 {[%clk 0:00:18]} 49. Rd1 {[%clk 0:00:04]}  Rxa4 {[%clk 0:00:18]} 50. Re1 {[%clk 0:00:04]}  Kf6 {[%clk 0:00:18]} 51. Kg2 {[%clk 0:00:05]}  Ra3 {[%clk 0:00:18]} 52. h3 {[%clk 0:00:04]}  Ke5 {[%clk 0:00:18]} 53. Re2 {[%clk 0:00:05]}  g5 {[%clk 0:00:18]} 54. Kh2 {[%clk 0:00:05]}  Rb3 {[%clk 0:00:17]} 55. Rg2 {[%clk 0:00:05]}  Kf4 {[%clk 0:00:17]} 56. Rg4+ {[%clk 0:00:06]}  Kf3 {[%clk 0:00:17]} 57. Rxg5 {[%clk 0:00:06]}  Rb2+ {[%clk 0:00:16]} 58. Kh1 {[%clk 0:00:06]}  Kxe4 {[%clk 0:00:16]} 59. Rg3 {[%clk 0:00:06]}  Kf4 {[%clk 0:00:16]} 60. Ra3 {[%clk 0:00:06]}  Rc2 {[%clk 0:00:17]} 61. Kg1 {[%clk 0:00:06]}  Rb2 {[%clk 0:00:17]} 62. Rc3 {[%clk 0:00:06]}  Ra2 {[%clk 0:00:18]} 63. Rb3 {[%clk 0:00:06]}  Rc2 {[%clk 0:00:18]} 64. Ra3 {[%clk 0:00:06]}  Rd2 {[%clk 0:00:18]} 65. Rb3 {[%clk 0:00:07]}  Rc2 {[%clk 0:00:18]} 66. Ra3 {[%clk 0:00:07]} 1/2-1/2


[Site "https://www.chess.com"]

[Event "Titled Tuesday Blitz March 15 Early 2022"]
[White "Chernov, Mikhail"]
[Black "Arabidze, Meri"]
[WhiteFideId "24143170"]
[BlackFideId "13604040"]
[WhiteElo "2189"]
[BlackElo "2335"]
[Result "0-1"]
[Round "03"]
[TimeControl "180+1"]
[Date "2022.03.15"]
[WhiteClock "0:00:29"]
[BlackClock "0:01:11"]

1. Nf3 {[%clk 0:03:00]}  c5 {[%clk 0:02:59]} 2. g3 {[%clk 0:03:01]}  b6 {[%clk 0:02:58]} 3. Bg2 {[%clk 0:03:02]}  Bb7 {[%clk 0:02:59]} 4. O-O {[%clk 0:03:02]}  Nf6 {[%clk 0:02:59]} 5. d4 {[%clk 0:03:02]}  cxd4 {[%clk 0:02:59]} 6. Nxd4 {[%clk 0:03:02]}  Bxg2 {[%clk 0:02:59]} 7. Kxg2 {[%clk 0:03:03]}  Nc6 {[%clk 0:02:57]} 8. c4 {[%clk 0:03:03]}  Qc8 {[%clk 0:02:56]} 9. Nc3 {[%clk 0:03:02]}  g6 {[%clk 0:02:47]} 10. e4 {[%clk 0:02:56]}  Bg7 {[%clk 0:02:47]} 11. Be3 {[%clk 0:02:48]}  O-O {[%clk 0:02:46]} 12. Rc1 {[%clk 0:02:48]}  Nxd4 {[%clk 0:02:41]} 13. Bxd4 {[%clk 0:02:46]}  Qb7 {[%clk 0:02:24]} 14. Nd5 {[%clk 0:02:39]}  Nxd5 {[%clk 0:02:20]} 15. cxd5 {[%clk 0:02:40]}  e5 {[%clk 0:02:11]} 16. Bc3 {[%clk 0:02:37]}  f5 {[%clk 0:02:10]} 17. f3 {[%clk 0:02:33]}  Rf7 {[%clk 0:02:06]} 18. Qa4 {[%clk 0:02:30]}  Raf8 {[%clk 0:02:06]} 19. Bb4 {[%clk 0:02:25]}  Re8 {[%clk 0:01:52]} 20. Bd6 {[%clk 0:02:24]}  b5 {[%clk 0:01:45]} 21. Qa5 {[%clk 0:02:22]}  Rc8 {[%clk 0:01:37]} 22. Rxc8+ {[%clk 0:01:34]}  Qxc8 {[%clk 0:01:38]} 23. Qxb5 {[%clk 0:01:33]}  fxe4 {[%clk 0:01:37]} 24. fxe4 {[%clk 0:01:34]}  Qc2+ {[%clk 0:01:36]} 25. Kg1 {[%clk 0:01:30]}  Rxf1+ {[%clk 0:01:33]} 26. Kxf1 {[%clk 0:01:25]}  Qxe4 {[%clk 0:01:26]} 27. Qxd7 {[%clk 0:01:24]}  Qb1+ {[%clk 0:01:22]} 28. Kg2 {[%clk 0:01:21]}  Qxb2+ {[%clk 0:01:23]} 29. Kh3 {[%clk 0:01:20]}  h5 {[%clk 0:01:18]} 30. Qxa7 {[%clk 0:01:07]}  Qe2 {[%clk 0:01:14]} 31. Qe7 {[%clk 0:00:29]}  Qf1+ {[%clk 0:01:11]} 32. Kh4 {[%clk 0:00:29]}  Bf6+ {[%clk 0:01:11]} 0-1


[Site "https://www.chess.com"]

[Event "Titled Tuesday Blitz March 15 Early 2022"]
[White "Dolzhykova, Kateryna"]
[Black "Maltsevskaya, Aleksandra"]
[WhiteFideId "14113414"]
[BlackFideId "24174041"]
[WhiteElo "2184"]
[BlackElo "2241"]
[Result "0-1"]
[Round "03"]
[TimeControl "180+1"]
[Date "2022.03.15"]
[WhiteClock "0:00:03"]
[BlackClock "0:00:11"]

1. e4 {[%clk 0:02:36]}  c5 {[%clk 0:02:57]} 2. Nf3 {[%clk 0:02:36]}  e6 {[%clk 0:02:58]} 3. d3 {[%clk 0:02:36]}  Nc6 {[%clk 0:02:59]} 4. Nbd2 {[%clk 0:02:37]}  b6 {[%clk 0:02:59]} 5. g3 {[%clk 0:02:37]}  Bb7 {[%clk 0:02:59]} 6. Bg2 {[%clk 0:02:38]}  g6 {[%clk 0:03:00]} 7. O-O {[%clk 0:02:38]}  Bg7 {[%clk 0:03:01]} 8. Re1 {[%clk 0:02:39]}  Nge7 {[%clk 0:02:59]} 9. e5 {[%clk 0:02:39]}  O-O {[%clk 0:03:00]} 10. Nc4 {[%clk 0:02:39]}  Qc7 {[%clk 0:02:48]} 11. Bf4 {[%clk 0:02:35]}  Nc8 {[%clk 0:02:39]} 12. h4 {[%clk 0:02:30]}  h5 {[%clk 0:02:32]} 13. Qd2 {[%clk 0:02:25]}  Nd4 {[%clk 0:02:29]} 14. Nxd4 {[%clk 0:02:20]}  cxd4 {[%clk 0:02:30]} 15. Bxb7 {[%clk 0:02:17]}  Qxb7 {[%clk 0:02:31]} 16. Bh6 {[%clk 0:02:17]}  d5 {[%clk 0:02:27]} 17. Bxg7 {[%clk 0:02:18]}  Kxg7 {[%clk 0:02:24]} 18. Na3 {[%clk 0:02:17]}  Ne7 {[%clk 0:02:24]} 19. Nb5 {[%clk 0:01:59]}  Nf5 {[%clk 0:02:23]} 20. Qf4 {[%clk 0:01:59]}  Qc6 {[%clk 0:02:21]} 21. Nxd4 {[%clk 0:01:47]}  Nxd4 {[%clk 0:02:21]} 22. Qxd4 {[%clk 0:01:48]}  Qxc2 {[%clk 0:02:19]} 23. Rac1 {[%clk 0:01:45]}  Qd2 {[%clk 0:02:19]} 24. Red1 {[%clk 0:01:44]}  Qa5 {[%clk 0:02:19]} 25. Rc7 {[%clk 0:01:29]}  Rac8 {[%clk 0:02:15]} 26. Rdc1 {[%clk 0:01:28]}  Rxc7 {[%clk 0:02:14]} 27. Rxc7 {[%clk 0:01:29]}  Qxa2 {[%clk 0:02:15]} 28. Kg2 {[%clk 0:01:12]}  Qb3 {[%clk 0:02:07]} 29. Rxa7 {[%clk 0:01:10]}  b5 {[%clk 0:02:04]} 30. Rb7 {[%clk 0:01:08]}  Qd1 {[%clk 0:01:41]} 31. Rxb5 {[%clk 0:01:02]}  Ra8 {[%clk 0:01:41]} 32. Qf4 {[%clk 0:00:48]}  Qxd3 {[%clk 0:01:33]} 33. Rb7 {[%clk 0:00:46]}  Kg8 {[%clk 0:01:33]} 34. b4 {[%clk 0:00:46]}  Rf8 {[%clk 0:01:25]} 35. b5 {[%clk 0:00:45]}  Qb3 {[%clk 0:01:16]} 36. b6 {[%clk 0:00:34]}  Qb2 {[%clk 0:00:56]} 37. g4 {[%clk 0:00:19]}  hxg4 {[%clk 0:00:55]} 38. h5 {[%clk 0:00:19]}  Qc3 {[%clk 0:00:46]} 39. Qxg4 {[%clk 0:00:08]}  Qc6 {[%clk 0:00:19]} 40. Re7 {[%clk 0:00:07]}  d4+ {[%clk 0:00:17]} 41. Kh2 {[%clk 0:00:07]}  Qc5 {[%clk 0:00:17]} 42. Rd7 {[%clk 0:00:05]}  Qxe5+ {[%clk 0:00:17]} 43. Kg2 {[%clk 0:00:05]}  Qc5 {[%clk 0:00:08]} 44. hxg6 {[%clk 0:00:04]}  Qc6+ {[%clk 0:00:09]} 45. Kg1 {[%clk 0:00:03]}  Qxd7 {[%clk 0:00:09]} 46. gxf7+ {[%clk 0:00:03]}  Kxf7 {[%clk 0:00:10]} 47. Qh5+ {[%clk 0:00:03]}  Ke7 {[%clk 0:00:11]} 48. Qg5+ {[%clk 0:00:04]}  Kd6 {[%clk 0:00:10]} 49. Qg3+ {[%clk 0:00:03]}  Kc6 {[%clk 0:00:10]} 50. Qg2+ {[%clk 0:00:02]}  Kxb6 {[%clk 0:00:11]} 51. Qg5 {[%clk 0:00:02]}  Qd5 {[%clk 0:00:10]} 52. Qc1 {[%clk 0:00:02]}  Rg8+ {[%clk 0:00:10]} 53. Kf1 {[%clk 0:00:02]}  Qh1+ {[%clk 0:00:10]} 54. Ke2 {[%clk 0:00:03]}  Qxc1 {[%clk 0:00:11]} 0-1


[Site "https://www.chess.com"]

[Event "Titled Tuesday Blitz March 15 Early 2022"]
[White "Dushyant Sharma"]
[Black "Vlassov, Nikolai"]
[WhiteFideId "25065130"]
[BlackFideId "4103360"]
[WhiteElo "2105"]
[BlackElo "2407"]
[Result "0-1"]
[Round "03"]
[TimeControl "180+1"]
[Date "2022.03.15"]
[WhiteClock "0:00:05"]
[BlackClock "0:00:17"]

1. e4 {[%clk 0:02:59]}  Nc6 {[%clk 0:02:58]} 2. Nf3 {[%clk 0:02:59]}  d5 {[%clk 0:02:59]} 3. exd5 {[%clk 0:02:59]}  Qxd5 {[%clk 0:02:59]} 4. d4 {[%clk 0:02:59]}  Bg4 {[%clk 0:02:58]} 5. Be3 {[%clk 0:02:59]}  Bxf3 {[%clk 0:02:57]} 6. Qxf3 {[%clk 0:02:55]}  Qxf3 {[%clk 0:02:57]} 7. gxf3 {[%clk 0:02:56]}  O-O-O {[%clk 0:02:55]} 8. Bh3+ {[%clk 0:02:51]}  Kb8 {[%clk 0:02:54]} 9. c3 {[%clk 0:02:52]}  e5 {[%clk 0:02:54]} 10. O-O {[%clk 0:02:38]}  exd4 {[%clk 0:02:53]} 11. cxd4 {[%clk 0:02:38]}  Nxd4 {[%clk 0:02:46]} 12. Bg2 {[%clk 0:02:31]}  Nf6 {[%clk 0:02:45]} 13. Nc3 {[%clk 0:02:29]}  Bb4 {[%clk 0:02:37]} 14. Rad1 {[%clk 0:02:27]}  Bxc3 {[%clk 0:02:30]} 15. bxc3 {[%clk 0:02:27]}  Ne2+ {[%clk 0:02:29]} 16. Kh1 {[%clk 0:02:27]}  Nxc3 {[%clk 0:02:30]} 17. Rc1 {[%clk 0:02:26]}  Ncd5 {[%clk 0:02:22]} 18. Bd4 {[%clk 0:02:25]}  b6 {[%clk 0:02:19]} 19. a4 {[%clk 0:02:20]}  Rhe8 {[%clk 0:02:12]} 20. a5 {[%clk 0:02:19]}  c5 {[%clk 0:02:11]} 21. Ba1 {[%clk 0:02:11]}  Nf4 {[%clk 0:02:01]} 22. Rb1 {[%clk 0:01:59]}  Kc7 {[%clk 0:01:59]} 23. Rg1 {[%clk 0:01:49]}  Nxg2 {[%clk 0:01:33]} 24. Rxg2 {[%clk 0:01:50]}  Nh5 {[%clk 0:01:34]} 25. Bxg7 {[%clk 0:01:43]}  Rg8 {[%clk 0:01:21]} 26. Be5+ {[%clk 0:01:40]}  Kc6 {[%clk 0:01:21]} 27. Rg4 {[%clk 0:01:36]}  f6 {[%clk 0:01:18]} 28. Ba1 {[%clk 0:01:19]}  Rg6 {[%clk 0:01:14]} 29. Rh4 {[%clk 0:01:14]}  Rd5 {[%clk 0:01:13]} 30. h3 {[%clk 0:01:07]}  Rgg5 {[%clk 0:01:11]} 31. Kh2 {[%clk 0:01:00]}  Rgf5 {[%clk 0:01:10]} 32. Rb3 {[%clk 0:00:54]}  Rd1 {[%clk 0:00:54]} 33. Bb2 {[%clk 0:00:51]}  Rb1 {[%clk 0:00:54]} 34. Re4 {[%clk 0:00:27]}  Re5 {[%clk 0:00:29]} 35. Rh4 {[%clk 0:00:14]}  Re2 {[%clk 0:00:24]} 36. Rxh5 {[%clk 0:00:11]}  Rbxb2 {[%clk 0:00:24]} 37. Rxb2 {[%clk 0:00:07]}  Rxb2 {[%clk 0:00:24]} 38. Rxh7 {[%clk 0:00:08]}  c4 {[%clk 0:00:20]} 39. Rxa7 {[%clk 0:00:08]}  b5 {[%clk 0:00:19]} 40. Ra6+ {[%clk 0:00:07]}  Kc5 {[%clk 0:00:19]} 41. Rxf6 {[%clk 0:00:07]}  c3 {[%clk 0:00:19]} 42. Rf8 {[%clk 0:00:07]}  b4 {[%clk 0:00:19]} 43. a6 {[%clk 0:00:07]}  Ra2 {[%clk 0:00:20]} 44. Rc8+ {[%clk 0:00:06]}  Kd4 {[%clk 0:00:20]} 45. Rc6 {[%clk 0:00:06]}  b3 {[%clk 0:00:20]} 46. h4 {[%clk 0:00:06]}  b2 {[%clk 0:00:20]} 47. Rb6 {[%clk 0:00:05]}  c2 {[%clk 0:00:20]} 48. a7 {[%clk 0:00:06]}  b1=Q {[%clk 0:00:18]} 49. Ra6 {[%clk 0:00:05]}  Rxa6 {[%clk 0:00:17]} 0-1


[Site "https://www.chess.com"]

[Event "Titled Tuesday Blitz March 15 Early 2022"]
[White "Dwilewicz, Katarzyna"]
[Black "Indjic, Aleksandar"]
[WhiteFideId "1148486"]
[BlackFideId "911925"]
[WhiteElo "1907"]
[BlackElo "2616"]
[Result "0-1"]
[Round "03"]
[TimeControl "180+1"]
[Date "2022.03.15"]
[WhiteClock "0:01:12"]
[BlackClock "0:02:17"]

1. e4 {[%clk 0:02:47]}  c6 {[%clk 0:02:59]} 2. d4 {[%clk 0:02:46]}  d5 {[%clk 0:02:59]} 3. e5 {[%clk 0:02:46]}  c5 {[%clk 0:02:56]} 4. dxc5 {[%clk 0:02:44]}  e6 {[%clk 0:02:56]} 5. a3 {[%clk 0:02:43]}  Bxc5 {[%clk 0:02:56]} 6. b4 {[%clk 0:02:43]}  Bb6 {[%clk 0:02:55]} 7. Bb2 {[%clk 0:02:43]}  Ne7 {[%clk 0:02:55]} 8. Nf3 {[%clk 0:02:43]}  a5 {[%clk 0:02:55]} 9. b5 {[%clk 0:02:42]}  Nd7 {[%clk 0:02:55]} 10. Nbd2 {[%clk 0:02:42]}  Ng6 {[%clk 0:02:55]} 11. Bd3 {[%clk 0:02:40]}  O-O {[%clk 0:02:53]} 12. O-O {[%clk 0:02:39]}  Nc5 {[%clk 0:02:48]} 13. Bxg6 {[%clk 0:02:23]}  fxg6 {[%clk 0:02:46]} 14. Nd4 {[%clk 0:02:19]}  Na4 {[%clk 0:02:45]} 15. Qc1 {[%clk 0:02:02]}  Bd7 {[%clk 0:02:44]} 16. N2f3 {[%clk 0:01:56]}  Rc8 {[%clk 0:02:43]} 17. Rb1 {[%clk 0:01:45]}  Nxb2 {[%clk 0:02:22]} 18. Qxb2 {[%clk 0:01:44]}  g5 {[%clk 0:02:22]} 19. c3 {[%clk 0:01:36]}  g4 {[%clk 0:02:19]} 20. Ne1 {[%clk 0:01:31]}  Qc7 {[%clk 0:02:17]} 21. Nd3 {[%clk 0:01:12]}  Qxc3 {[%clk 0:02:17]} 0-1


[Site "https://www.chess.com"]